fUSD/lending_fUSD_20240616
["ID","MTS","AMOUNT","RATE_DAILY","PERIOD"]
[329613241,1718506404216,263.19625241,0.00010488,2]
[329613242,1718506406630,75466.33607528,0.00010488,2]
[329613243,1718506406680,206493.08860912,0.00010488,2]
[329613261,1718507104724,187.745849,0.000275,120]
[329613262,1718507132819,151.0,0.000275,120]
[329613264,1718507200301,-163.45965325,0.00011025,2]
[329613265,1718507215916,2624.290886,0.00010969,2]
[329613266,1718507235469,-1206.60530187,0.00011023,2]
[329613267,1718507347271,-296.16162819,0.00011018,2]
[329613268,1718507347322,-35521.22347996,0.00011018,2]
[329613269,1718507347378,-920.53374068,0.00011019,2]
[329613270,1718507347411,-4449.51330229,0.00011019,2]
[329613271,1718507347468,-886.91046005,0.0001102,2]
[329613272,1718507347548,-536.866205,0.00011022,2]
[329613273,1718507347580,-2153.60078762,0.00011376,2]
[329613274,1718507347616,-1840.64439621,0.00011634,2]
[329613275,1718507351237,-2289.24640915,0.00011634,2]
[329613276,1718507351287,-7950.1958303,0.00011635,2]
[329613277,1718507351339,-2766.3649,0.00011636,2]
[329613278,1718507351367,-1294.90150262,0.00011785,2]
[329613279,1718507351431,-169371.13625677,0.00011786,2]
[329613280,1718507367083,6573.6424,0.00010926,2]
[329613285,1718507433818,-351.68374011,0.00011785,2]
[329613286,1718507433844,-521.97670531,0.00011785,2]
[329613287,1718507433866,-329.97904965,0.00011785,2]
[329613288,1718507433880,-144.48730676,0.00011785,2]
[329613289,1718507434154,-68.4150877,0.00011785,2]
[329613290,1718507434166,-245.6428745,0.00011785,2]
[329613291,1718507434177,-300.0,0.00011786,2]
[329613292,1718507434188,-725.26771992,0.00011786,2]
[329613293,1718507434211,-2830.24058752,0.00011786,2]
[329613294,1718507434239,-4310.90983593,0.00011787,2]
[329613295,1718507434250,-156.17071048,0.00011798,2]
[329613296,1718507434281,-786.90809948,0.00011798,2]
[329613297,1718507434294,-1890.73321414,0.00011798,2]
[329613298,1718507434325,-388.19843471,0.00011798,2]
[329613299,1718507434346,-241.79566205,0.00011798,2]
[329613300,1718507434358,-368.66069285,0.00011798,2]
[329613301,1718507434371,-338.00805674,0.00011798,2]
[329613302,1718507434382,-319.89387456,0.00011798,2]
[329613303,1718507434404,-2195.01899183,0.00011798,2]
[329613304,1718507434416,-2369.42831983,0.00011798,2]
[329613305,1718507434449,-268.27796725,0.00011798,2]
[329613306,1718507434478,-155.51541043,0.00011798,2]
[329613307,1718507434501,-451.05070953,0.00011798,2]
[329613308,1718507434513,-155.13649833,0.00011799,2]
[329613309,1718507434524,-5586.98275761,0.00011799,2]
[329613310,1718507434552,-283.14081319,0.00011799,2]
[329613311,1718507434571,-1010.11071329,0.00011799,2]
[329613312,1718507434612,-1288.97876408,0.00011799,2]
[329613313,1718507434622,-166.799397,0.00011799,2]
[329613314,1718507434659,-155.38674667,0.00011799,2]
[329613315,1718507434673,-355.91444796,0.000118,2]
[329613316,1718507434698,-4097.15035892,0.000118,2]
[329613317,1718507434717,-2817.43508768,0.000118,2]
[329613318,1718507434745,-550.74,0.00013743,2]
[329613319,1718507434781,-31327.17292512,0.00015,2]
[329613320,1718507434800,-250.0,0.00015302,2]
[329613321,1718507434816,-550.74,0.00016007,2]
[329613322,1718507434873,-1000.0,0.0001723,2]
[329613323,1718507434893,-550.74,0.00018271,2]
[329613324,1718507434912,-1500.0,0.00019284,2]
[329613325,1718507434928,-1000.0,0.00019383,2]
[329613326,1718507434952,-1500.0,0.00019865,2]
[329613327,1718507434974,-550.74,0.00020535,2]
[329613328,1718507434999,-2243.0,0.00021,2]
[329613329,1718507435012,-1250.0,0.00021,2]
[329613330,1718507435047,-202.011918,0.000211,2]
[329613331,1718507435089,-155.0,0.0002145,2]
[329613332,1718507435119,-1000.0,0.00021537,2]
[329613333,1718507435140,-870.07749455,0.00021616,2]
[329613334,1718507435177,-1211.03658962,0.00021616,2]
[329613335,1718507435192,-315.0,0.00021616,2]
[329613336,1718507435258,-569.99999994,0.00021616,2]
[329613337,1718507435296,-351.899999,0.00021616,2]
[329613338,1718507435336,-1021.25350281,0.00021616,2]
[329613339,1718507435353,-399.72377673,0.00021617,2]
[329613340,1718507435763,-410.97520531,0.00021617,2]
[329613343,1718507435890,-1433.51391152,0.00021617,2]
[329613344,1718507435910,-18762.08940248,0.00021617,2]
[329613345,1718507435947,-12611.04820383,0.00021617,2]
[329613346,1718507435967,-2054.25610013,0.00021617,2]
[329613347,1718507435980,-245.793,0.00021617,2]
[329613348,1718507436000,-1000.0,0.000217,2]
[329613349,1718507436083,-1271.71861,0.000217,2]
[329613350,1718507436094,-324.45517274,0.000217,2]
[329613351,1718507436129,-1000.0,0.00021715,2]
[329613352,1718507436143,-1904.47245607,0.00021718,2]
[329613353,1718507436164,-737.05092681,0.00021718,2]
[329613354,1718507436184,-560.2023371,0.00021718,2]
[329613355,1718507436850,-481.39000032,0.00021718,2]
[329613356,1718507436980,-422.76314946,0.00021718,2]
[329613357,1718507437003,-2478.29101073,0.00021718,2]
[329613358,1718507437028,-556.70320369,0.00021718,2]
[329613359,1718507437060,-10238.27063213,0.00021718,2]
[329613360,1718507437086,-2719.05049637,0.00021718,2]
[329613361,1718507437108,-20906.75793379,0.00021718,2]
[329613362,1718507437244,-2360.35387545,0.00021718,2]
[329613366,1718507439370,-6793.64778067,0.00021718,2]
[329613367,1718507439406,-2145.76887824,0.00021718,2]
[329613368,1718507439429,-1169.55400002,0.00021718,2]
[329613369,1718507439461,-1145.08013776,0.00021718,2]
[329613370,1718507439499,-4440.864085,0.00021718,2]
[329613371,1718507439549,-494.72760592,0.00021718,2]
[329613374,1718507443569,-1236.89030779,0.00021718,2]
[329613375,1718507443593,-538.07843301,0.00021718,2]
[329613376,1718507443702,-2302.33461568,0.00021718,2]
[329613377,1718507443719,-1275.36257132,0.00021718,2]
[329613378,1718507443756,-20172.62771686,0.00021718,2]
[329613379,1718507443956,-2072.10473281,0.00021718,2]
[329613380,1718507443997,-623.33043072,0.00021718,2]
[329613382,1718507444524,-3816.05315889,0.00021718,2]
[329613383,1718507444539,-280.19597884,0.00021718,2]
[329613384,1718507444576,-546.72024455,0.00021718,2]
[329613385,1718507444589,-200.17003407,0.000218,2]
[329613386,1718507444629,-785.23100942,0.000218,2]
[329613387,1718507444643,-168.59895651,0.000218,2]
[329613388,1718507444654,-223.14,0.00021808,2]
[329613389,1718507444668,-1245.36040165,0.00021817,2]
[329613390,1718507444758,-1392.37172164,0.00021817,2]
[329613391,1718507444876,-1651.94935281,0.00021817,2]
[329613392,1718507445213,-938.22806406,0.00021817,2]
[329613397,1718507445531,-316.156902,0.00021817,2]
[329613400,1718507445554,-754.4407858,0.00021817,2]
[329613402,1718507445600,-1201.49277204,0.00021817,2]
[329613403,1718507445613,-179.922919,0.00021817,2]
[329613405,1718507445633,-4383.20437801,0.00021817,2]
[329613406,1718507445646,-170.41117185,0.00021817,2]
[329613408,1718507445661,-1429.75388379,0.00021817,2]
[329613410,1718507445674,-1021.0,0.0002189,2]
[329613413,1718507445692,-1000.0,0.0002189,2]
[329613415,1718507445706,-1000.0,0.0002189,2]
[329613418,1718507445737,-856.0,0.0002189,2]
[329613420,1718507445751,-1000.0,0.0002189,2]
[329613422,1718507445762,-1000.0,0.0002189,2]
[329613424,1718507445777,-1000.0,0.0002189,2]
[329613425,1718507445809,-1000.0,0.0002189,2]
[329613427,1718507445834,-1000.0,0.0002189,2]
[329613429,1718507445857,-1000.0,0.0002189,2]
[329613431,1718507445887,-1000.0,0.0002189,2]
[329613433,1718507445904,-1000.0,0.0002189,2]
[329613435,1718507445920,-1000.0,0.0002189,2]
[329613437,1718507445953,-1000.0,0.0002189,2]
[329613439,1718507445969,-1000.0,0.0002189,2]
[329613456,1718507445982,-1000.0,0.0002189,2]
[329613459,1718507446331,-176.0,0.0002189,2]
[329613461,1718507446342,-1000.0,0.0002189,2]
[329613463,1718507446358,-979.0,0.000219,4]
[329613465,1718507446370,-300.10538648,0.00021916,2]
[329613467,1718507446385,-404.36573902,0.00021916,2]
[329613470,1718507446445,-240.74297631,0.00021916,2]
[329613472,1718507446458,-777.0,0.00021917,2]
[329613475,1718507446470,-1000.0,0.00021917,2]
[329613477,1718507446508,-1000.0,0.00021917,2]
[329613479,1718507446521,-1000.0,0.00021917,2]
[329613481,1718507446548,-1000.0,0.00021917,2]
[329613483,1718507446563,-1000.0,0.00021917,2]
[329613485,1718507446575,-1000.0,0.00021917,2]
[329613487,1718507446598,-1000.0,0.00021917,2]
[329613490,1718507446615,-1000.0,0.00021917,2]
[329613491,1718507446633,-1000.0,0.00021917,2]
[329613492,1718507446662,-1000.0,0.00021917,2]
[329613493,1718507446673,-1000.0,0.00021917,2]
[329613494,1718507446706,-1000.0,0.00021917,2]
[329613495,1718507446728,-1000.0,0.00021917,2]
[329613496,1718507446739,-1000.0,0.00021917,2]
[329613497,1718507446757,-1000.0,0.00021917,2]
[329613498,1718507446769,-1000.0,0.00021917,2]
[329613499,1718507446814,-1000.0,0.00021917,2]
[329613500,1718507446858,-1000.0,0.00021917,2]
[329613501,1718507446890,-1000.0,0.00021917,2]
[329613502,1718507446904,-1000.0,0.00021917,2]
[329613503,1718507446918,-1000.0,0.00021917,2]
[329613504,1718507446954,-1000.0,0.00021917,2]
[329613505,1718507446987,-1000.0,0.00021917,2]
[329613506,1718507446999,-1000.0,0.00021917,2]
[329613507,1718507447011,-111.73575266,0.00021917,2]
[329613508,1718507447199,-692.6769599,0.00021917,2]
[329613509,1718507447225,-195.58728744,0.00021917,2]
[329613510,1718507447243,-1000.0,0.00021917,2]
[329613511,1718507447255,-1000.0,0.00021917,2]
[329613512,1718507447292,-1000.0,0.00021917,2]
[329613513,1718507447303,-13024.36297911,0.00021917,2]
[329613514,1718507447336,-287.9074326,0.00021917,2]
[329613515,1718507447360,-591.48894635,0.00021917,2]
[329613516,1718507447371,-500.0,0.00021917,2]
[329613518,1718507447388,-500.0,0.00021917,2]
[329613519,1718507447420,-500.0,0.00021917,2]
[329613520,1718507447433,-500.0,0.00021917,2]
[329613521,1718507447498,-500.0,0.00021917,2]
[329613522,1718507447529,-493.60780826,0.00021917,2]
[329613523,1718507447548,-500.0,0.00021917,2]
[329613524,1718507447580,-500.0,0.00021917,2]
[329613525,1718507447601,-500.0,0.00021917,2]
[329613526,1718507447613,-500.0,0.00021917,2]
[329613527,1718507447629,-500.0,0.00021917,2]
[329613528,1718507447654,-859.2,0.00021917,2]
[329613529,1718507447685,-155.22915166,0.00021917,2]
[329613530,1718507447697,-500.0,0.00021917,2]
[329613531,1718507447726,-500.0,0.00021917,2]
[329613532,1718507447764,-500.0,0.00021917,2]
[329613533,1718507447820,-500.0,0.00021917,2]
[329613534,1718507447852,-636.54,0.00021917,2]
[329613535,1718507447900,-623.88,0.00021917,2]
[329613536,1718507447939,-500.0,0.00021917,2]
[329613537,1718507448020,-601.18,0.00021917,2]
[329613538,1718507448035,-500.0,0.00021917,2]
[329613539,1718507448052,-500.0,0.00021917,2]
[329613540,1718507448063,-500.0,0.00021917,2]
[329613541,1718507448075,-500.0,0.00021917,2]
[329613542,1718507448100,-615.86,0.00021917,2]
[329613543,1718507448114,-500.0,0.00021917,2]
[329613544,1718507448130,-500.0,0.00021917,2]
[329613546,1718507448154,-500.0,0.00021917,2]
[329613548,1718507448178,-500.0,0.00021917,2]
[329613549,1718507448198,-709.37,0.00021917,2]
[329613550,1718507448227,-500.0,0.00021917,2]
[329613551,1718507448244,-379.8280253,0.00021917,2]
[329613552,1718507448557,-120.1719747,0.00021917,2]
[329613553,1718507448570,-500.0,0.00021917,2]
[329613554,1718507448584,-500.0,0.00021917,2]
[329613555,1718507448596,-500.0,0.00021917,2]
[329613556,1718507448610,-500.0,0.00021917,2]
[329613557,1718507448622,-500.0,0.00021917,2]
[329613558,1718507448645,-730.96,0.00021917,2]
[329613559,1718507448657,-500.0,0.00021917,2]
[329613560,1718507448672,-500.0,0.00021917,2]
[329613561,1718507448682,-698.2,0.00021917,2]
[329613562,1718507448700,-500.0,0.00021917,2]
[329613563,1718507448713,-500.0,0.00021917,2]
[329613564,1718507448724,-562.57,0.00021917,2]
[329613565,1718507448764,-537.75682687,0.00021917,2]
[329613566,1718507448780,-500.0,0.00021917,2]
[329613567,1718507448814,-514.78154986,0.00021917,2]
[329613568,1718507448868,-689.46,0.00021917,2]
[329613569,1718507448901,-500.0,0.00021917,2]
[329613570,1718507448922,-500.0,0.00021917,2]
[329613571,1718507448933,-500.0,0.00021917,2]
[329613572,1718507448946,-500.0,0.00021917,2]
[329613573,1718507448956,-500.0,0.00021917,2]
[329613574,1718507448977,-583.80244313,0.00021917,2]
[329613575,1718507449004,-500.0,0.00021917,2]
[329613576,1718507449016,-500.0,0.00021917,2]
[329613578,1718507449030,-500.0,0.00021917,2]
[329613580,1718507449049,-384.01242845,0.00021917,2]
[329613583,1718507449066,-525.37029807,0.00021917,2]
[329613584,1718507449085,-500.0,0.00021917,2]
[329613586,1718507449097,-500.0,0.00021917,2]
[329613588,1718507449110,-500.0,0.00021917,2]
[329613590,1718507449121,-569.99153052,0.00021917,2]
[329613591,1718507449132,-500.0,0.00021917,2]
[329613594,1718507449148,-500.0,0.00021917,2]
[329613596,1718507449160,-500.0,0.00021917,2]
[329613597,1718507449172,-500.0,0.00021917,2]
[329613599,1718507449197,-500.0,0.00021917,2]
[329613602,1718507449215,-318.82781158,0.00021917,2]
[329613603,1718507449232,-500.0,0.00021917,2]
[329613605,1718507449252,-500.0,0.00021917,2]
[329613607,1718507449271,-576.55,0.00021917,2]
[329613609,1718507449283,-500.0,0.00021917,2]
[329613611,1718507449296,-500.0,0.00021917,2]
[329613614,1718507449314,-500.0,0.00021917,2]
[329613616,1718507449348,-375.06904925,0.00021917,2]
[329613618,1718507449365,-500.0,0.00021917,2]
[329613620,1718507449389,-500.0,0.00021917,2]
[329613622,1718507449401,-500.0,0.00021917,2]
[329613624,1718507449416,-500.0,0.00021917,2]
[329613625,1718507449427,-500.0,0.00021917,2]
[329613627,1718507449438,-500.0,0.00021917,2]
[329613629,1718507449456,-500.0,0.00021917,2]
[329613630,1718507449471,-1366.59,0.00021917,2]
[329613632,1718507449486,-500.0,0.00021917,2]
[329613633,1718507449505,-500.0,0.00021917,2]
[329613635,1718507449519,-500.0,0.00021917,2]
[329613637,1718507449560,-500.0,0.00021917,2]
[329613640,1718507449586,-500.0,0.00021917,2]
[329613643,1718507449620,-508.4423242,0.00021917,2]
[329613645,1718507449646,-500.0,0.00021917,2]
[329613647,1718507449661,-500.0,0.00021917,2]
[329613649,1718507449675,-500.0,0.00021917,2]
[329613652,1718507449705,-511.77514521,0.00021917,2]
[329613655,1718507449730,-612.94,0.00021917,2]
[329613658,1718507449761,-500.0,0.00021917,2]
[329613660,1718507449796,-500.0,0.00021917,2]
[329613663,1718507449824,-500.0,0.00021917,2]
[329613665,1718507449837,-220.39886964,0.00021917,2]
[329613667,1718507449860,-704.73,0.00021917,2]
[329613668,1718507449883,-500.0,0.00021917,2]
[329613670,1718507449900,-500.0,0.00021917,2]
[329613672,1718507449920,-514.76475279,0.00021917,2]
[329613675,1718507449964,-169.46029744,0.00021917,2]
[329613676,1718507449998,-500.0,0.00021917,2]
[329613678,1718507450027,-500.0,0.00021917,2]
[329613680,1718507450066,-591.07,0.00021917,2]
[329613683,1718507450095,-500.0,0.00021917,2]
[329613685,1718507450148,-500.0,0.00021917,2]
[329613686,1718507450165,-567.20803336,0.00021917,2]
[329613687,1718507450221,-500.0,0.00021917,2]
[329613688,1718507450246,-500.0,0.00021917,2]
[329613689,1718507450256,-524.2099482,0.00021917,2]
[329613690,1718507450288,-500.0,0.00021917,2]
[329613691,1718507450304,-500.0,0.00021917,2]
[329613692,1718507450315,-500.0,0.00021917,2]
[329613693,1718507450358,-500.0,0.00021917,2]
[329613694,1718507450376,-500.0,0.00021917,2]
[329613695,1718507450417,-500.0,0.00021917,2]
[329613696,1718507450428,-500.0,0.00021917,2]
[329613697,1718507450445,-500.0,0.00021917,2]
[329613698,1718507450456,-500.0,0.00021917,2]
[329613699,1718507450470,-678.06,0.00021917,2]
[329613700,1718507450512,-500.0,0.00021917,2]
[329613701,1718507450528,-500.0,0.00021917,2]
[329613702,1718507450558,-500.0,0.00021917,2]
[329613703,1718507450569,-500.0,0.00021917,2]
[329613704,1718507450581,-500.0,0.00021917,2]
[329613705,1718507450612,-500.0,0.00021917,2]
[329613706,1718507450626,-500.0,0.00021917,2]
[329613707,1718507450642,-500.0,0.00021917,2]
[329613708,1718507450663,-500.0,0.00021917,2]
[329613709,1718507450708,-500.0,0.00021917,2]
[329613710,1718507450726,-500.0,0.00021917,2]
[329613711,1718507450738,-500.0,0.00021917,2]
[329613712,1718507450752,-250.0,0.00021917,2]
[329613713,1718507450780,-500.0,0.00021917,2]
[329613714,1718507450796,-500.0,0.00021917,2]
[329613715,1718507450825,-500.0,0.00021917,2]
[329613716,1718507450838,-500.0,0.00021917,2]
[329613717,1718507450855,-500.0,0.00021917,2]
[329613718,1718507450885,-500.0,0.00021917,2]
[329613719,1718507450899,-500.0,0.00021917,2]
[329613720,1718507450914,-500.0,0.00021917,2]
[329613721,1718507450932,-500.0,0.00021917,2]
[329613722,1718507450953,-500.0,0.00021917,2]
[329613723,1718507450975,-500.0,0.00021917,2]
[329613724,1718507450990,-500.0,0.00021917,2]
[329613725,1718507451005,-500.92242004,0.00021917,2]
[329613726,1718507451020,-500.0,0.00021917,2]
[329613727,1718507451056,-500.0,0.00021917,2]
[329613728,1718507451071,-500.0,0.00021917,2]
[329613729,1718507451092,-500.0,0.00021917,2]
[329613730,1718507451121,-500.0,0.00021917,2]
[329613731,1718507451134,-500.0,0.00021917,2]
[329613732,1718507451170,-500.0,0.00021917,2]
[329613733,1718507451212,-500.0,0.00021917,2]
[329613734,1718507451241,-516.82597611,0.00021917,2]
[329613735,1718507451257,-500.0,0.00021917,2]
[329613736,1718507451274,-520.58412777,0.00021917,2]
[329613737,1718507451286,-500.0,0.00021917,2]
[329613738,1718507451340,-500.0,0.00021917,2]
[329613739,1718507451355,-511.95290341,0.00021917,2]
[329613740,1718507451371,-500.0,0.00021917,2]
[329613741,1718507451382,-500.0,0.00021917,2]
[329613742,1718507451395,-500.0,0.00021917,2]
[329613743,1718507451435,-500.0,0.00021917,2]
[329613744,1718507451455,-500.0,0.00021917,2]
[329613745,1718507451472,-500.0,0.00021917,2]
[329613746,1718507451485,-500.0,0.00021917,2]
[329613747,1718507451502,-514.32161453,0.00021917,2]
[329613748,1718507451529,-500.0,0.00021917,2]
[329613749,1718507451557,-500.0,0.00021917,2]
[329613750,1718507451572,-500.0,0.00021917,2]
[329613751,1718507451593,-500.0,0.00021917,2]
[329613752,1718507451624,-520.32414494,0.00021917,2]
[329613753,1718507451636,-294.78746917,0.00021917,2]
[329613754,1718507451648,-500.0,0.00021917,2]
[329613755,1718507451660,-500.0,0.00021917,2]
[329613756,1718507451672,-500.0,0.00021917,2]
[329613757,1718507451850,-829.81,0.00021917,2]
[329613758,1718507451862,-500.0,0.00021917,2]
[329613759,1718507451874,-500.0,0.00021917,2]
[329613760,1718507451889,-807.24,0.00021917,2]
[329613761,1718507451920,-500.0,0.00021917,2]
[329613762,1718507451932,-500.0,0.00021917,2]
[329613763,1718507451945,-500.0,0.00021917,2]
[329613764,1718507451955,-500.0,0.00021917,2]
[329613765,1718507451965,-500.0,0.00021917,2]
[329613766,1718507451984,-622.91,0.00021917,2]
[329613767,1718507451995,-500.0,0.00021917,2]
[329613768,1718507452016,-500.0,0.00021917,2]
[329613769,1718507452037,-500.0,0.00021917,2]
[329613770,1718507452061,-500.0,0.00021917,2]
[329613771,1718507452084,-500.0,0.00021917,2]
[329613772,1718507452098,-500.0,0.00021917,2]
[329613773,1718507452111,-396.48509779,0.00021917,2]
[329613774,1718507452123,-500.0,0.00021917,2]
[329613775,1718507452142,-500.0,0.00021917,2]
[329613776,1718507452165,-500.0,0.00021917,2]
[329613777,1718507452178,-500.0,0.00021917,2]
[329613778,1718507452189,-500.0,0.00021917,2]
[329613779,1718507452224,-500.0,0.00021917,2]
[329613780,1718507452235,-500.0,0.00021917,2]
[329613781,1718507452253,-500.0,0.00021917,2]
[329613782,1718507452265,-500.0,0.00021917,2]
[329613783,1718507452293,-500.0,0.00021917,2]
[329613784,1718507452313,-500.0,0.00021917,2]
[329613785,1718507452336,-2298.17,0.00021917,2]
[329613786,1718507452353,-500.0,0.00021917,2]
[329613787,1718507452366,-639.28,0.00021917,2]
[329613788,1718507452381,-500.0,0.00021917,2]
[329613789,1718507452405,-500.0,0.00021917,2]
[329613790,1718507452427,-500.0,0.00021917,2]
[329613791,1718507452439,-406.36110445,0.00021917,2]
[329613792,1718507452451,-500.0,0.00021917,2]
[329613793,1718507452471,-500.0,0.00021917,2]
[329613794,1718507452482,-943.92,0.00021917,2]
[329613795,1718507452494,-500.0,0.00021917,2]
[329613796,1718507452505,-500.0,0.00021917,2]
[329613797,1718507452522,-509.7949374,0.00021917,2]
[329613798,1718507452534,-500.0,0.00021917,2]
[329613799,1718507452553,-500.0,0.00021917,2]
[329613800,1718507452565,-500.0,0.00021917,2]
[329613801,1718507452579,-500.0,0.00021917,2]
[329613802,1718507452597,-500.0,0.00021917,2]
[329613803,1718507452614,-500.0,0.00021917,2]
[329613804,1718507452627,-704.66,0.00021917,2]
[329613805,1718507452653,-419.66377156,0.00021917,2]
[329613806,1718507452664,-500.0,0.00021917,2]
[329613807,1718507452684,-500.0,0.00021917,2]
[329613808,1718507452705,-500.0,0.00021917,2]
[329613809,1718507452722,-530.86,0.00021917,2]
[329613810,1718507452738,-500.0,0.00021917,2]
[329613811,1718507452749,-500.0,0.00021917,2]
[329613812,1718507452770,-500.0,0.00021917,2]
[329613813,1718507452785,-500.0,0.00021917,2]
[329613814,1718507452799,-626.39229395,0.00021917,2]
[329613815,1718507452828,-1108.68,0.00021917,2]
[329613816,1718507452863,-500.0,0.00021917,2]
[329613817,1718507452893,-500.0,0.00021917,2]
[329613818,1718507452916,-500.0,0.00021917,2]
[329613819,1718507452938,-500.0,0.00021917,2]
[329613820,1718507452950,-500.0,0.00021917,2]
[329613821,1718507452969,-500.0,0.00021917,2]
[329613822,1718507452993,-500.0,0.00021917,2]
[329613823,1718507453007,-318.60306008,0.00021917,2]
[329613824,1718507453019,-500.0,0.00021917,2]
[329613825,1718507453057,-500.0,0.00021917,2]
[329613826,1718507453080,-1307.12,0.00021917,2]
[329613827,1718507453092,-500.0,0.00021917,2]
[329613828,1718507453109,-500.0,0.00021917,2]
[329613829,1718507453123,-500.0,0.00021917,2]
[329613830,1718507453138,-20000.0,0.00021917,2]
[329613831,1718507453153,-500.0,0.00021917,2]
[329613832,1718507453184,-1120.14,0.00021917,2]
[329613833,1718507453200,-500.0,0.00021917,2]
[329613834,1718507453220,-500.0,0.00021917,2]
[329613835,1718507453237,-500.0,0.00021917,2]
[329613836,1718507453253,-500.0,0.00021917,2]
[329613837,1718507453282,-530.47080134,0.00021917,2]
[329613838,1718507453295,-508.89749671,0.00021917,2]
[329613839,1718507453308,-500.0,0.00021917,2]
[329613840,1718507453320,-500.0,0.00021917,2]
[329613841,1718507453335,-500.0,0.00021917,2]
[329613842,1718507453347,-500.0,0.00021917,2]
[329613843,1718507453370,-500.0,0.00021917,2]
[329613844,1718507453384,-500.0,0.00021917,2]
[329613845,1718507453400,-500.0,0.00021917,2]
[329613846,1718507453417,-500.0,0.00021917,2]
[329613847,1718507453428,-500.0,0.00021917,2]
[329613848,1718507453439,-500.0,0.00021917,2]
[329613849,1718507453450,-658.83,0.00021917,2]
[329613850,1718507453462,-944.53,0.00021917,2]
[329613851,1718507453473,-500.0,0.00021917,2]
[329613852,1718507453485,-500.0,0.00021917,2]
[329613853,1718507453502,-500.0,0.00021917,2]
[329613854,1718507453521,-500.0,0.00021917,2]
[329613855,1718507453571,-500.0,0.00021917,2]
[329613856,1718507453588,-500.0,0.00021917,2]
[329613857,1718507453636,-500.0,0.00021917,2]
[329613858,1718507453660,-500.0,0.00021917,2]
[329613859,1718507453685,-1131.83,0.00021917,2]
[329613860,1718507453697,-500.0,0.00021917,2]
[329613861,1718507453714,-500.0,0.00021917,2]
[329613862,1718507453740,-500.0,0.00021917,2]
[329613863,1718507453779,-500.0,0.00021917,2]
[329613864,1718507453790,-500.0,0.00021917,2]
[329613865,1718507453812,-513.00180956,0.00021917,2]
[329613866,1718507453852,-500.0,0.00021917,2]
[329613867,1718507453871,-614.22,0.00021917,2]
[329613868,1718507453883,-500.0,0.00021917,2]
[329613869,1718507453902,-500.0,0.00021917,2]
[329613870,1718507453917,-165.65594741,0.00021917,2]
[329613871,1718507453932,-500.0,0.00021917,2]
[329613872,1718507453952,-500.0,0.00021917,2]
[329613873,1718507453965,-500.0,0.00021917,2]
[329613874,1718507453981,-500.0,0.00021917,2]
[329613875,1718507453992,-500.0,0.00021917,2]
[329613876,1718507454004,-500.0,0.00021917,2]
[329613877,1718507454016,-500.0,0.00021917,2]
[329613878,1718507454028,-500.0,0.00021917,2]
[329613879,1718507454048,-500.0,0.00021917,2]
[329613880,1718507454067,-500.0,0.00021917,2]
[329613881,1718507454089,-500.0,0.00021917,2]
[329613882,1718507454121,-500.0,0.00021917,2]
[329613883,1718507454152,-500.0,0.00021917,2]
[329613884,1718507454171,-500.0,0.00021917,2]
[329613885,1718507454182,-500.0,0.00021917,2]
[329613886,1718507454193,-500.0,0.00021917,2]
[329613887,1718507454205,-457.95401738,0.00021917,2]
[329613888,1718507454217,-1053.19,0.00021917,2]
[329613889,1718507454238,-500.0,0.00021917,2]